bitfinex-derivatives/quotes_BTCF0:USTF0_20250130
["timestamp","ask_amount","ask_price","bid_price","bid_amount"]
[1738240217473,0.6256291,105140.0,105130.0,0.0096413]
[1738240217672,0.190268,105130.0,105120.0,0.1003265]
[1738240217874,0.2887945,105130.0,105120.0,0.4611265]
[1738240218177,0.2887945,105130.0,105120.0,0.6514125]
[1738240219066,0.220368,105130.0,105120.0,0.6524125]
[1738240219270,0.220368,105130.0,105120.0,0.6544125]
[1738240220079,0.220368,105130.0,105120.0,0.63197555]
[1738240220382,0.252168,105130.0,105120.0,0.63197555]
[1738240221478,0.220368,105130.0,105120.0,0.70040205]
[1738240221683,0.220368,105130.0,105120.0,0.73190205]
[1738240225484,0.220368,105130.0,105120.0,0.66347555]
[1738240228579,0.220368,105130.0,105120.0,0.73190205]
[1738240229685,0.220368,105130.0,105120.0,0.66347555]
[1738240229983,0.220368,105130.0,105120.0,0.73190205]
[1738240231475,0.220368,105130.0,105120.0,0.66347555]
[1738240235887,0.220368,105130.0,105120.0,0.73190205]
[1738240240086,0.220368,105130.0,105120.0,0.66347555]
[1738240241790,0.220368,105130.0,105120.0,0.73190205]
[1738240242987,0.220368,105130.0,105120.0,0.66347555]
[1738240244591,0.190268,105130.0,105120.0,0.66347555]
[1738240246400,0.190268,105130.0,105120.0,0.47318955]
[1738240246695,0.2586945,105130.0,105120.0,0.37326305]
[1738240246997,0.6824945,105130.0,105120.0,0.01246305]
[1738240247299,0.3216945,105130.0,105120.0,0.01246305]
[1738240249690,0.3466945,105130.0,105120.0,0.01246305]
[1738240250198,0.3466945,105130.0,105120.0,0.003]
[1738240252292,0.3466945,105130.0,105120.0,0.0714265]
[1738240253304,0.7074945,105130.0,105120.0,0.0714265]
[1738240254202,0.71702525,105130.0,105120.0,0.003]
[1738240257498,0.52675725,105130.0,105110.0,0.0001426]
[1738240257701,0.6519125,105120.0,105110.0,0.0001426]
[1738240258904,0.6529125,105120.0,105110.0,0.0051426]
[1738240259105,0.721339,105120.0,105110.0,0.0051426]
[1738240259497,0.721339,105120.0,105110.0,0.0071426]
[1738240260206,0.6779125,105120.0,105110.0,0.0051426]
[1738240260507,0.6779125,105120.0,105110.0,0.0755691]
[1738240261499,0.6529125,105120.0,105110.0,0.0071426]
[1738240261700,0.6779125,105120.0,105110.0,0.0071426]
[1738240262311,0.74781387,105120.0,105110.0,0.0071426]
[1738240265400,0.6779125,105120.0,105110.0,0.0071426]
[1738240266203,0.6779125,105120.0,105110.0,0.0755691]
[1738240266404,0.6779125,105120.0,105110.0,0.1078691]
[1738240266799,0.584486,105120.0,105110.0,0.2981731]
[1738240267005,0.191286,105120.0,105110.0,0.6913731]
[1738240267411,0.191286,105120.0,105110.0,0.7223731]
[1738240270513,0.2597125,105120.0,105110.0,0.7223731]
[1738240270706,0.2597125,105120.0,105110.0,0.4326426]
[1738240271214,0.191286,105120.0,105110.0,0.6913731]
[1738240272607,0.2597125,105120.0,105110.0,0.1402691]
[1738240273110,0.2597125,105120.0,105110.0,0.0071426]
[1738240273406,0.3535125,105120.0,105110.0,0.0071426]
[1738240274710,0.782739,105120.0,105110.0,0.0071426]
[1738240275602,0.782739,105120.0,105110.0,6e-07]
[1738240275808,0.421939,105120.0,105110.0,6e-07]
[1738240276014,1.143539,105120.0,105110.0,6e-07]
[1738240281120,1.15327794,105120.0,105110.0,6e-07]
[1738240286415,1.22170444,105120.0,105110.0,6e-07]
[1738240287722,1.22570444,105120.0,105110.0,6e-07]
[1738240288023,1.03541844,105120.0,105100.0,2e-07]
[1738240288324,0.712957,105110.0,105100.0,2e-07]
[1738240288822,1.073757,105110.0,105100.0,2e-07]
[1738240293724,1.0053305,105110.0,105100.0,2e-07]
[1738240298338,1.073757,105110.0,105100.0,2e-07]
[1738240300937,0.9803305,105110.0,105100.0,2e-07]
[1738240301140,1.5750905,105110.0,105100.0,2e-07]
[1738240301639,1.643517,105110.0,105100.0,2e-07]
[1738240301840,1.5750905,105110.0,105100.0,2e-07]
[1738240302041,1.643517,105110.0,105100.0,2e-07]
[1738240302442,1.92740962,105110.0,105100.0,2e-07]
[1738240302636,1.85898312,105110.0,105100.0,2e-07]
[1738240306240,1.85906312,105110.0,105100.0,2e-07]
[1738240307238,1.92748962,105110.0,105100.0,2e-07]
[1738240309742,1.85906312,105110.0,105100.0,2e-07]
[1738240310234,1.85906312,105110.0,105100.0,0.0935002]
[1738240311747,1.87206312,105110.0,105100.0,0.0935002]
[1738240314241,1.87198312,105110.0,105100.0,0.0935002]
[1738240315247,1.30222312,105110.0,105100.0,0.0935002]
[1738240317850,1.0183305,105110.0,105100.0,0.0935002]
[1738240319349,0.2967305,105110.0,105100.0,0.0935002]
[1738240320551,0.6575305,105110.0,105100.0,0.0935002]
[1738240321051,0.6325305,105110.0,105100.0,0.0935002]
[1738240321252,0.6575305,105110.0,105100.0,0.0935002]
[1738240324345,0.6575305,105110.0,105100.0,0.0618002]
[1738240326460,0.6575305,105110.0,105100.0,0.0316002]
[1738240327944,0.6575305,105110.0,105100.0,2e-07]
[1738240330549,0.6575705,105110.0,105100.0,2e-07]
[1738240332958,0.725997,105110.0,105100.0,2e-07]
[1738240333362,0.79590937,105110.0,105100.0,2e-07]
[1738240336962,0.72748287,105110.0,105100.0,2e-07]
[1738240338461,0.79590937,105110.0,105100.0,2e-07]
[1738240338866,0.72748287,105110.0,105100.0,2e-07]
[1738240339469,0.98353881,105110.0,105100.0,2e-07]
[1738240340261,1.05196531,105110.0,105100.0,2e-07]
[1738240347270,1.12039181,105110.0,105100.0,2e-07]
[1738240347464,1.05196531,105110.0,105100.0,2e-07]
[1738240352774,1.02692531,105110.0,105100.0,2e-07]
[1738240352974,0.93008781,105110.0,105080.0,0.0324]
[1738240353174,0.687994,105090.0,105080.0,0.0324]
[1738240353373,1.073834,105090.0,105080.0,0.0324]
[1738240354576,1.082834,105090.0,105080.0,0.0324]
[1738240355781,1.0144075,105090.0,105080.0,0.0324]
[1738240356175,1.082834,105090.0,105080.0,0.0324]
[1738240356373,1.087834,105090.0,105080.0,0.0324]
[1738240357779,1.0194075,105090.0,105080.0,0.0324]
[1738240358079,1.0184075,105090.0,105080.0,0.0324]
[1738240358272,1.086834,105090.0,105080.0,0.0324]
[1738240359579,1.087834,105090.0,105080.0,0.0324]
[1738240359981,0.190358,105080.0,105070.0,0.0651]
[1738240360174,0.688011,105080.0,105070.0,0.0651]
[1738240361380,0.697011,105080.0,105070.0,0.0651]
[1738240362670,0.701011,105080.0,105070.0,0.0651]
[1738240364080,0.726091,105080.0,105070.0,0.0651]
[1738240365687,0.190413,105050.0,105040.0,0.3608]
[1738240365982,0.2588395,105050.0,105040.0,0.4583]
[1738240366774,0.2588395,105050.0,105040.0,0.5267265]
[1738240366979,0.2588395,105050.0,105040.0,0.7171575]
[1738240367175,0.2598395,105050.0,105040.0,0.7171575]
[1738240368474,0.2598395,105050.0,105040.0,0.648731]
[1738240368975,0.2598395,105050.0,105040.0,0.7171575]
[1738240369173,0.2598395,105050.0,105040.0,0.648731]
[1738240369368,0.2598395,105050.0,105040.0,0.7171575]
[1738240370681,0.191413,105050.0,105040.0,0.785584]
[1738240371474,0.191413,105050.0,105040.0,0.7171575]
[1738240372881,0.001,105050.0,105040.0,0.785584]
[1738240374195,0.001,105050.0,105040.0,0.810704]
[1738240379579,0.001,105050.0,105040.0,0.785584]
[1738240379786,0.001,105050.0,105040.0,0.810624]
[1738240382886,0.001,105050.0,105040.0,0.785584]
[1738240383089,0.001,105050.0,105040.0,0.810624]
[1738240384686,0.001,105050.0,105040.0,0.785584]
[1738240384886,0.001,105050.0,105040.0,0.810624]
[1738240386695,0.0001426,105060.0,105050.0,0.190413]
[1738240386897,0.0001426,105060.0,105050.0,0.6196395]
[1738240391698,0.1905376,105060.0,105050.0,0.6196395]
[1738240392593,0.2589641,105060.0,105050.0,0.2588395]
[1738240392789,0.3231641,105060.0,105050.0,0.2588395]
[1738240392993,0.3231641,105060.0,105050.0,0.6196395]
[1738240393503,0.2547376,105060.0,105050.0,0.6196395]
[1738240395294,0.2547376,105060.0,105050.0,0.62918007]
[1738240398193,0.3231641,105060.0,105050.0,0.37034057]
[1738240398397,0.3231641,105060.0,105050.0,0.62918007]
[1738240398398,0.2547376,105060.0,105050.0,0.62918007]
[1738240399202,0.3231641,105060.0,105050.0,0.43876707]
[1738240399407,0.3231641,105060.0,105050.0,0.37034057]
[1738240400506,0.2547376,105060.0,105050.0,0.62918007]
[1738240402697,0.2237376,105060.0,105050.0,0.62918007]
[1738240402897,0.2237376,105060.0,105050.0,0.66008007]
[1738240407206,0.2247376,105060.0,105050.0,0.66008007]
[1738240408110,0.2237376,105060.0,105050.0,0.66008007]
[1738240408514,0.2237376,105060.0,105050.0,0.69278007]
[1738240408712,0.1905376,105060.0,105050.0,0.69278007]
[1738240409011,0.1905376,105060.0,105050.0,0.72438007]
[1738240416010,0.1905376,105060.0,105050.0,0.74942007]
[1738240419510,0.0001426,105060.0,105050.0,0.74942007]
[1738240419912,0.0001426,105060.0,105050.0,0.81784657]
[1738240421711,0.0318,105080.0,105060.0,0.047597]
[1738240421907,0.222168,105080.0,105070.0,0.6498025]
[1738240422618,0.222168,105080.0,105070.0,1.0106025]
[1738240423017,0.190368,105080.0,105070.0,1.0106025]
[1738240423314,0.190368,105080.0,105070.0,1.0983025]
[1738240424313,0.198368,105080.0,105070.0,1.0983025]
[1738240424624,0.201368,105080.0,105070.0,1.0983025]
[1738240425116,0.198368,105080.0,105070.0,1.0983025]
[1738240425417,0.197368,105080.0,105070.0,1.0983025]
[1738240429217,0.197368,105080.0,105070.0,1.166729]
[1738240429923,0.197368,105080.0,105070.0,1.17624539]
[1738240431416,0.007,105080.0,105070.0,1.17624539]
[1738240431617,0.1904926,105090.0,105080.0,0.190358]
[1738240431813,0.1904926,105090.0,105080.0,0.688011]
[1738240434126,0.1914926,105090.0,105080.0,0.690011]
[1738240434721,0.1904926,105090.0,105080.0,0.691011]
[1738240443435,0.03442822,105110.0,105080.0,0.5690795]
[1738240443733,0.221393,105120.0,105110.0,0.190304]
[1738240443935,0.221393,105120.0,105110.0,0.551104]
[1738240444326,0.190293,105120.0,105110.0,0.6771305]
[1738240446334,0.199293,105120.0,105110.0,0.6781305]
[1738240446836,0.204293,105120.0,105110.0,0.6781305]
[1738240448435,0.204293,105120.0,105110.0,0.746557]
[1738240448837,0.014,105120.0,105110.0,0.810657]
[1738240449729,0.014,105120.0,105110.0,0.8199869]
[1738240452736,0.005,105120.0,105110.0,0.8189869]
[1738240453041,0.1904206,105130.0,105120.0,0.190286]
[1738240453237,0.1904206,105130.0,105120.0,0.687939]
[1738240454135,0.0001426,105130.0,105120.0,0.687939]
[1738240454335,0.0021426,105130.0,105120.0,0.687939]
[1738240454547,0.0071426,105130.0,105120.0,0.687939]
[1738240460434,0.1974106,105130.0,105120.0,0.6195125]
[1738240460639,0.3597371,105130.0,105120.0,0.3608]
[1738240460843,0.3597371,105130.0,105120.0,0.6195125]
[1738240461657,0.2913106,105130.0,105120.0,0.0684265]
[1738240461948,0.190286,105120.0,105110.0,0.6538954]
[1738240462641,0.190286,105120.0,105110.0,0.68980281]
[1738240463145,0.190286,105120.0,105110.0,0.69280281]
[1738240463648,0.190286,105120.0,105110.0,0.66776281]
[1738240463850,0.190286,105120.0,105110.0,0.69276281]
[1738240465555,0.190286,105120.0,105110.0,0.66776281]
[1738240465751,0.190286,105120.0,105110.0,0.3731299]
[1738240466061,0.190286,105120.0,105110.0,0.47746381]
[1738240466257,0.190286,105120.0,105110.0,0.3731299]
[1738240467566,0.190286,105120.0,105110.0,0.3638]
[1738240469160,0.190286,105120.0,105110.0,0.3628]
[1738240469367,0.192286,105120.0,105110.0,0.3628]
[1738240469860,0.197286,105120.0,105110.0,0.3608]
[1738240470065,0.199286,105120.0,105110.0,0.3608]
[1738240470364,0.203286,105120.0,105110.0,0.3618]
[1738240475462,0.30761991,105120.0,105110.0,0.3618]
[1738240475667,0.66841991,105120.0,105110.0,0.001]
[1738240476175,0.77275382,105120.0,105110.0,0.001]
[1738240476463,0.66841991,105120.0,105110.0,0.001]
[1738240478465,0.58246782,105120.0,105100.0,0.0001426]
[1738240478665,0.77867791,105110.0,105100.0,0.0001426]
[1738240480167,0.78367791,105110.0,105100.0,0.0001426]
[1738240480570,0.78567791,105110.0,105100.0,0.0001426]
[1738240484578,0.74984595,105110.0,105100.0,0.0001426]
[1738240484967,0.72480595,105110.0,105100.0,0.0001426]
[1738240485173,0.295504,105110.0,105100.0,0.25896655]
[1738240485369,0.36400595,105110.0,105100.0,0.25896655]
[1738240485565,0.262604,105110.0,105100.0,0.61976655]
[1738240486767,0.230104,105110.0,105100.0,0.61976655]
[1738240486967,0.197304,105110.0,105100.0,0.6882685]
[1738240487175,0.197304,105110.0,105100.0,0.61976655]
[1738240489070,0.26580595,105110.0,105100.0,0.5512646]
[1738240490076,0.26580595,105110.0,105100.0,0.3609426]
[1738240490276,0.26580595,105110.0,105100.0,0.37032576]
[1738240490671,0.29630595,105110.0,105100.0,0.56064776]
[1738240492377,0.227804,105110.0,105100.0,0.62914971]
[1738240492681,0.197304,105110.0,105100.0,0.69765166]
[1738240494587,0.197304,105110.0,105100.0,0.66498927]
[1738240496182,0.197304,105110.0,105100.0,0.69018927]
[1738240497085,0.197304,105110.0,105100.0,0.66498927]
[1738240497383,0.197304,105110.0,105100.0,0.69018927]
[1738240502479,0.197304,105110.0,105100.0,0.66498927]
[1738240502678,0.197304,105110.0,105100.0,0.69014927]
[1738240504383,0.007,105110.0,105100.0,0.69014927]
[1738240505074,0.005,105110.0,105100.0,0.69114927]
[1738240505278,0.28440437,105130.0,105100.0,0.50082727]
[1738240505490,0.28440437,105130.0,105120.0,1.01622751]
[1738240505778,0.28440437,105130.0,105120.0,1.04134751]
[1738240505979,0.28440437,105130.0,105120.0,1.14568902]
[1738240506882,0.28640437,105130.0,105120.0,1.14568902]
[1738240507196,0.29140437,105130.0,105120.0,1.14568902]
[1738240507486,0.29140437,105130.0,105120.0,1.04134751]
[1738240507686,0.29140437,105130.0,105120.0,1.01822751]
[1738240507687,0.28640437,105130.0,105120.0,1.01822751]
[1738240507884,0.28640437,105130.0,105120.0,1.04338751]
[1738240508185,0.0021426,105130.0,105120.0,1.04338751]
[1738240508480,0.1904106,105130.0,105120.0,1.04338751]
[1738240508688,0.1904106,105130.0,105120.0,1.05062751]
[1738240508888,0.1904106,105130.0,105120.0,1.07578751]
[1738240509087,0.1904106,105130.0,105120.0,1.05062751]
[1738240509281,0.1904106,105130.0,105120.0,1.07582751]
[1738240509484,0.0001426,105130.0,105120.0,1.07582751]
[1738240511783,0.0001426,105130.0,105120.0,1.08553115]
[1738240513983,0.0001426,105130.0,105120.0,1.18987266]
[1738240527802,0.0001426,105130.0,105120.0,1.19187266]
[1738240528796,0.0001426,105130.0,105120.0,1.18987266]
[1738240528997,0.0001426,105130.0,105120.0,1.19487266]
[1738240533608,0.0001426,105130.0,105120.0,1.16967266]
[1738240533808,0.0001426,105130.0,105120.0,1.19495266]
[1738240535007,0.0001426,105130.0,105120.0,1.36577711]
[1738240541608,0.0001426,105130.0,105120.0,1.59283871]
[1738240542511,0.0943,105150.0,105120.0,1.40255271]
[1738240542815,0.29297585,105170.0,105140.0,0.93028302]
[1738240543020,0.35597585,105170.0,105160.0,0.65535551]
[1738240544015,0.36497585,105170.0,105160.0,0.65535551]
[1738240544420,0.37097585,105170.0,105160.0,0.65635551]
[1738240545620,0.292108,105170.0,105160.0,0.65635551]
[1738240545827,0.292108,105170.0,105160.0,0.65735551]
[1738240545828,0.301108,105170.0,105160.0,0.65735551]
[1738240547822,0.297108,105170.0,105160.0,0.65635551]
[1738240548319,0.297108,105170.0,105160.0,1.01715551]
[1738240548320,0.1069,105170.0,105160.0,1.01715551]
[1738240548719,0.074,105170.0,105160.0,1.01715551]
[1738240549519,0.0415,105170.0,105160.0,1.01715551]
[1738240549733,0.002,105170.0,105160.0,1.04625551]
[1738240549923,0.006,105170.0,105160.0,1.04625551]
[1738240550234,0.006,105170.0,105160.0,1.05596041]
[1738240556825,0.006,105170.0,105160.0,1.08140041]
[1738240557231,0.196196,105170.0,105160.0,0.9215189]
[1738240557428,0.36323751,105170.0,105160.0,0.0097049]
[1738240557736,0.190214,105160.0,105150.0,0.2158076]
[1738240557927,0.222314,105160.0,105150.0,0.5766076]
[1738240558127,0.222314,105160.0,105150.0,0.2158076]
[1738240558332,0.222314,105160.0,105150.0,0.1903676]
[1738240558530,0.222314,105160.0,105150.0,0.56058084]
[1738240558734,0.222314,105160.0,105150.0,0.00955584]
[1738240559039,0.222314,105160.0,105150.0,0.01155584]
[1738240559429,0.32665551,105160.0,105150.0,0.01155584]
[1738240559628,0.222314,105160.0,105150.0,0.01155584]
[1738240561137,0.236314,105160.0,105150.0,0.30512935]
[1738240562136,0.236314,105160.0,105150.0,0.20078784]
[1738240563529,0.236314,105160.0,105150.0,0.30512935]
[1738240564639,0.236314,105160.0,105150.0,0.66592935]
[1738240566839,0.236314,105160.0,105150.0,0.56158784]
[1738240567152,0.19025,105140.0,105130.0,0.65539651]
[1738240567343,0.19025,105140.0,105130.0,0.29459651]
[1738240567641,0.22105,105140.0,105130.0,0.29459651]
[1738240568042,0.22105,105140.0,105130.0,0.190255]
[1738240568244,0.22105,105140.0,105130.0,0.192255]
[1738240568744,0.22105,105140.0,105130.0,0.29659651]
[1738240568939,0.22105,105140.0,105130.0,0.192255]
[1738240569143,0.22105,105140.0,105130.0,0.20165819]
[1738240569541,0.22105,105140.0,105130.0,0.3059997]
[1738240571140,0.22105,105140.0,105130.0,0.20165819]
[1738240579152,0.22105,105140.0,105130.0,0.6667997]
[1738240579353,0.22105,105140.0,105130.0,0.3059997]
[1738240580457,0.22105,105140.0,105130.0,0.6667997]
[1738240580646,0.22105,105140.0,105130.0,0.3059997]
[1738240580850,0.22105,105140.0,105130.0,0.6667997]
[1738240581854,0.19025,105140.0,105130.0,0.6667997]
[1738240582151,0.19025,105140.0,105130.0,0.6996997]
[1738240584867,0.19025,105140.0,105130.0,0.23455819]
[1738240585163,0.19025,105140.0,105130.0,0.01140319]
[1738240585360,0.22075,105140.0,105130.0,0.01140319]
[1738240585862,0.22075,105140.0,105130.0,0.20167119]
[1738240586064,0.44255,105140.0,105130.0,0.20167119]
[1738240591158,0.44255,105140.0,105130.0,0.3060127]
[1738240591365,0.44255,105140.0,105130.0,0.6668127]
[1738240591555,0.41205,105140.0,105130.0,0.3060127]
[1738240591962,0.19025,105140.0,105130.0,0.3060127]
[1738240592567,0.19025,105140.0,105130.0,0.20167119]
[1738240599472,0.19025,105140.0,105130.0,0.3060127]
[1738240600174,0.19025,105140.0,105130.0,0.3377127]
[1738240602177,0.19025,105140.0,105130.0,0.6985127]
[1738240602774,0.19025,105140.0,105130.0,0.7238327]
[1738240602975,0.19025,105140.0,105130.0,0.59417119]
[1738240603171,0.19025,105140.0,105130.0,0.25865119]
[1738240603377,0.19025,105140.0,105130.0,0.23337119]
[1738240603576,0.19025,105140.0,105130.0,0.01140319]
[1738240603577,0.29459151,105140.0,105130.0,0.01140319]
[1738240603772,0.19025,105140.0,105130.0,0.01140319]
[1738240604570,0.29459151,105140.0,105130.0,0.01140319]
[1738240605184,0.32459151,105140.0,105130.0,0.01140319]
[1738240613486,0.34991151,105140.0,105130.0,0.01140319]
[1738240613784,0.24557,105140.0,105130.0,0.20167119]
[1738240616187,0.22025,105140.0,105130.0,0.20167119]
[1738240616386,0.24557,105140.0,105130.0,0.20167119]
[1738240623199,0.21557,105140.0,105130.0,0.20167119]
[1738240625988,0.19025,105140.0,105130.0,0.20167119]
[1738240626191,0.21553,105140.0,105130.0,0.20167119]
[1738240633898,0.28398718,105140.0,105130.0,0.20167119]
[1738240639908,0.28398718,105140.0,105130.0,0.01140319]
[1738240641111,0.25870718,105140.0,105130.0,0.20167119]
[1738240641315,0.19025,105140.0,105130.0,0.56247119]
[1738240641505,0.19025,105140.0,105130.0,0.69522837]
[1738240644608,0.19025,105140.0,105130.0,0.72054837]
[1738240645607,0.19025,105140.0,105130.0,0.69522837]
[1738240648214,0.47464637,105150.0,105140.0,0.19025]
[1738240648406,0.47464637,105150.0,105140.0,0.61950718]
[1738240648605,0.47464637,105150.0,105140.0,0.65170718]
[1738240649411,0.47664637,105150.0,105140.0,0.65170718]
[1738240649619,0.48064637,105150.0,105140.0,0.29090718]
[1738240649915,0.54910355,105150.0,105140.0,0.29090718]
[1738240650107,0.48064637,105150.0,105140.0,0.29090718]
[1738240650315,0.54910355,105150.0,105140.0,0.22245]
[1738240650611,0.26484178,105150.0,105140.0,0.22245]
[1738240653105,0.19025,105140.0,105130.0,0.62476319]
[1738240653418,0.25870718,105140.0,105130.0,0.59266319]
[1738240654316,0.19025,105140.0,105130.0,0.59266319]
[1738240654508,0.19025,105140.0,105130.0,0.66112037]
[1738240655008,0.25870718,105140.0,105130.0,0.59266319]
[1738240655213,0.25870718,105140.0,105130.0,0.56046319]
[1738240655214,0.28870718,105140.0,105130.0,0.56046319]
[1738240655810,0.28870718,105140.0,105130.0,0.56246319]
[1738240656110,0.28870718,105140.0,105130.0,0.37220319]
[1738240656306,0.28870718,105140.0,105130.0,0.56247119]
[1738240660922,0.28870718,105140.0,105130.0,0.37220319]
[1738240667826,0.28870718,105140.0,105130.0,0.56247119]
[1738240668127,0.22025,105140.0,105130.0,0.63092837]
[1738240672118,0.19025,105140.0,105130.0,0.63092837]
[1738240672623,0.41698649,105140.0,105130.0,0.63092837]
[1738240672928,0.41698649,105140.0,105130.0,0.66312837]
[1738240675628,0.48544367,105140.0,105130.0,0.59467119]
[1738240676127,0.19025,105140.0,105130.0,0.59467119]
[1738240676435,0.19025,105140.0,105130.0,0.66312837]
[1738240679529,0.25870718,105140.0,105130.0,0.59467119]
[1738240680322,0.25870718,105140.0,105130.0,0.66312837]
[1738240680520,0.19025,105140.0,105130.0,0.66312837]
[1738240693438,0.22687909,105150.0,105130.0,0.47286037]
[1738240693636,0.41712409,105150.0,105140.0,0.68180718]
[1738240694440,0.41812409,105150.0,105140.0,0.68180718]
[1738240694840,0.41812409,105150.0,105140.0,0.68380718]
[1738240695446,0.41712409,105150.0,105140.0,0.68380718]
[1738240695638,0.22687909,105150.0,105140.0,0.77758436]
[1738240696548,0.22687909,105150.0,105140.0,0.77762436]
[1738240696957,0.48556827,105150.0,105140.0,0.68380718]
[1738240697250,0.41711109,105150.0,105140.0,0.70916718]
[1738240697946,0.41711109,105150.0,105140.0,0.68380718]
[1738240700654,0.1903746,105150.0,105140.0,0.68380718]
[1738240700944,0.25883178,105150.0,105140.0,0.65270718]
[1738240701446,0.29173178,105150.0,105140.0,0.65270718]
[1738240702447,0.53075696,105150.0,105120.0,0.17096705]
[1738240702642,0.68798236,105130.0,105120.0,0.17096705]
[1738240702952,0.59161154,105130.0,105110.0,0.39813522]
[1738240703248,0.84625754,105120.0,105110.0,0.39813522]
[1738240703857,0.82085754,105120.0,105110.0,0.39813522]
[1738240704041,0.82085754,105120.0,105100.0,0.283827]
[1738240704042,0.65597154,105120.0,105100.0,0.283827]
[1738240704244,0.71831836,105110.0,105100.0,0.2839696]
[1738240704639,0.68581924,105110.0,105100.0,0.2839696]
[1738240706440,0.69081924,105110.0,105100.0,0.2839696]
[1738240707056,0.76563637,105110.0,105100.0,0.0001426]
[1738240708147,0.79099637,105110.0,105100.0,0.0001426]
[1738240711360,0.91548948,105110.0,105100.0,0.0001426]
[1738240711553,0.91548948,105110.0,105080.0,0.65911846]
[1738240711554,0.72518548,105110.0,105080.0,0.37517546]
[1738240711755,0.65555624,105090.0,105080.0,0.00142706]
[1738240711955,0.68087624,105090.0,105080.0,0.00142706]
[1738240712155,0.71357624,105090.0,105080.0,0.00142706]
[1738240713350,0.68825624,105090.0,105080.0,0.00642706]
[1738240713556,0.71357624,105090.0,105080.0,0.00642706]
[1738240715159,0.71357624,105090.0,105080.0,0.00742706]
[1738240717058,0.35273624,105090.0,105080.0,0.00742706]
[1738240717249,0.32745624,105090.0,105080.0,0.00742706]
[1738240717449,0.35273624,105090.0,105080.0,0.00742706]
[1738240717762,0.35277624,105090.0,105080.0,0.00742706]
[1738240719655,0.71357624,105090.0,105080.0,0.00742706]
[1738240719957,0.81799148,105090.0,105080.0,0.00742706]
[1738240722059,0.81799148,105090.0,105080.0,0.006]
[1738240726264,0.85119148,105090.0,105080.0,0.006]
[1738240726565,0.7109022,105090.0,105080.0,0.006]
[1738240727563,0.7794434,105090.0,105080.0,0.006]
[1738240728566,0.7109022,105090.0,105080.0,0.006]
[1738240731379,0.7794434,105090.0,105080.0,0.006]
[1738240733270,0.94823465,105090.0,105080.0,0.006]
[1738240737662,0.7794434,105090.0,105080.0,0.006]
[1738240744869,0.8507546,105090.0,105080.0,0.006]
[1738240748076,0.190377,105070.0,105060.0,0.10556764]
[1738240748270,0.2840382,105070.0,105060.0,0.10556764]
[1738240748973,0.2840382,105070.0,105060.0,0.46636764]
[1738240749388,0.2840382,105070.0,105060.0,0.47036764]
[1738240749882,0.2589182,105070.0,105060.0,0.47036764]
[1738240750079,0.2589182,105070.0,105060.0,0.66076264]
[1738240750387,0.2599182,105070.0,105060.0,0.66976264]
[1738240751680,0.2599182,105070.0,105060.0,0.44916764]
[1738240751975,0.2599182,105070.0,105060.0,0.08836764]
[1738240752181,0.32089015,105070.0,105060.0,0.08836764]
[1738240753893,0.32089015,105070.0,105060.0,0.27876264]
[1738240755894,0.51926112,105070.0,105060.0,0.27876264]
[1738240756992,0.51926112,105070.0,105060.0,0.02566764]
[1738240758485,0.54430112,105070.0,105060.0,0.02566764]
[1738240758684,0.54430112,105070.0,105060.0,0.013]
[1738240760385,0.45071992,105070.0,105060.0,0.564195]
[1738240760589,0.45071992,105070.0,105060.0,0.6327362]
[1738240761089,0.51926112,105070.0,105060.0,0.564195]
[1738240761294,0.51926112,105070.0,105060.0,0.203395]
[1738240761492,0.51926112,105070.0,105060.0,0.564195]
[1738240761886,0.51926112,105070.0,105060.0,0.013]
[1738240762490,0.2599182,105070.0,105060.0,0.013]
[1738240762993,0.2850382,105070.0,105060.0,0.013]
[1738240764193,0.2840382,105070.0,105060.0,0.008]
[1738240764691,0.31997287,105070.0,105060.0,0.008]
[1738240765598,0.31997287,105070.0,105060.0,0.3648]
[1738240765895,0.31997287,105070.0,105060.0,0.3668]
[1738240766083,0.38094482,105070.0,105060.0,0.3668]
[1738240767599,0.38094482,105070.0,105060.0,0.557195]
[1738240767799,0.27646895,105070.0,105060.0,0.557195]
[1738240768898,0.190377,105070.0,105060.0,0.557195]
[1738240769695,0.29485287,105070.0,105060.0,0.557195]
[1738240775297,0.3543944,105070.0,105060.0,0.557195]
[1738240778296,0.55276537,105070.0,105060.0,0.557195]
[1738240780717,0.4482895,105070.0,105060.0,0.557195]
[1738240783412,0.4482895,105070.0,105060.0,0.66167087]
[1738240784509,0.4482895,105070.0,105060.0,0.62572964]
[1738240785311,0.41711349,105070.0,105060.0,0.62572964]
[1738240788718,0.41711349,105070.0,105060.0,0.69426428]
[1738240788916,0.190377,105070.0,105060.0,0.69426428]
[1738240789421,0.190377,105070.0,105060.0,0.62572964]
[1738240792427,0.36043778,105070.0,105060.0,0.62572964]
[1738240807727,0.17006078,105070.0,105060.0,0.62572964]
[1738240807931,0.05968413,105080.0,105060.0,0.57240392]
[1738240808134,0.25889364,105080.0,105070.0,0.3608]
[1738240808432,0.25889364,105080.0,105060.0,0.582225]
[1738240808433,0.190377,105070.0,105060.0,0.582225]
[1738240808633,0.190377,105070.0,105060.0,0.557185]
[1738240808836,0.25891164,105070.0,105060.0,0.3668]
[1738240809032,0.28911164,105070.0,105060.0,0.006]
[1738240809338,0.28911164,105070.0,105060.0,0.192395]
[1738240809536,0.64991164,105070.0,105060.0,0.192395]
[1738240809839,0.28911164,105070.0,105060.0,0.192395]
[1738240810041,0.28911164,105070.0,105060.0,0.190395]
[1738240810243,0.28911164,105070.0,105060.0,0.196395]
[1738240811341,0.28911164,105070.0,105060.0,0.557195]
[1738240813035,0.28911164,105070.0,105060.0,0.62572964]
[1738240813639,0.28911164,105070.0,105060.0,0.557195]
[1738240813844,0.28911164,105070.0,105060.0,0.62572964]
[1738240814338,0.220577,105070.0,105060.0,0.62572964]
[1738240818843,0.220577,105070.0,105060.0,0.557195]
[1738240819045,0.28911164,105070.0,105060.0,0.557195]
[1738240822745,0.28911164,105070.0,105060.0,0.62572964]
[1738240822949,0.28911164,105070.0,105060.0,0.557195]
[1738240823152,0.28911164,105070.0,105060.0,0.3668]
[1738240823350,0.64991164,105070.0,105060.0,0.006]
[1738240823553,0.67507164,105070.0,105060.0,0.006]
[1738240827142,0.90180813,105070.0,105060.0,0.006]
[1738240831445,0.97034277,105070.0,105060.0,0.006]
[1738240831756,0.190395,105060.0,105050.0,0.0001426]
[1738240831955,0.190431,105040.0,105030.0,0.59306934]
[1738240832149,0.190431,105040.0,105030.0,0.40262234]
[1738240832150,0.32750028,105040.0,105030.0,0.40262234]